bitfinex-derivatives/quotes_ETHF0:USTF0_20240920
["timestamp","ask_amount","ask_price","bid_price","bid_amount"]
[1726839780273,0.3954,2529.0,2528.5,0.4096]
[1726839780481,0.39541,2528.9,2528.4,3.5838]
[1726839780683,0.4011,2529.3,2528.6,4.27]
[1726839780982,3.2078,2529.8,2528.7,3.2078]
[1726839781283,3.2078,2529.8,2528.7,3.6052]
[1726839781483,3.60307,2529.8,2529.0,3.2078]
[1726839781675,3.2078,2529.8,2529.0,3.60319]
[1726839781878,3.2078,2529.8,2529.1,0.39537]
[1726839782073,0.39529,2529.7,2528.9,4.27]
[1726839782278,3.2078,2529.8,2528.7,3.6052]
[1726839782580,0.4098,2530.0,2528.7,0.3974]
[1726839782581,0.39533,2529.4,2528.7,0.3974]
[1726839782774,0.39534,2529.3,2528.7,0.3974]
[1726839782977,0.3954,2529.0,2528.4,0.376]
[1726839783387,3.2078,2529.2,2528.4,0.376]
[1726839783706,0.39541,2528.9,2528.4,0.376]
[1726839783876,0.39543,2528.8,2528.4,0.376]
[1726839784080,0.39544,2528.7,2528.0,3.6175]
[1726839784977,3.2078,2528.3,2527.8,0.407]
[1726839785485,3.2078,2528.3,2527.4,3.2078]
[1726839785681,4.19657,2528.3,2527.4,3.2078]
[1726839785882,3.2078,2528.0,2527.4,3.2078]
[1726839786286,3.60335,2528.0,2527.4,3.2078]
[1726839786488,0.39556,2527.9,2527.4,3.2078]
[1726839786686,0.39558,2527.8,2527.4,3.2078]
[1726839787188,0.39559,2527.7,2527.4,3.2078]
[1726839787375,0.39558,2527.8,2527.4,3.2078]
[1726839787984,0.39558,2527.8,2527.1,0.39568]
[1726839788385,0.39559,2527.7,2527.0,4.00249]
[1726839788692,3.2078,2528.0,2527.0,3.6068]
[1726839788987,0.39561,2527.6,2527.0,3.6068]
[1726839789185,3.2078,2528.0,2527.0,3.6068]
[1726839789386,1.39034,2528.1,2526.6,0.3766]
[1726839789387,0.39568,2527.2,2526.6,0.3766]
[1726839789887,0.39568,2527.2,2526.6,0.77236]
[1726839790189,3.60345,2527.4,2526.8,0.39573]
[1726839790385,3.60345,2527.4,2526.9,3.60351]
[1726839790386,3.2078,2527.4,2526.9,3.60351]
[1726839790578,3.2078,2527.4,2527.0,0.3957]
[1726839790781,0.39568,2527.2,2526.9,3.2078]
[1726839791079,0.39565,2527.4,2526.9,7.56031]
[1726839791280,0.39565,2527.4,2526.9,3.60351]
[1726839791491,0.39565,2527.4,2526.9,3.60352]
[1726839791687,3.2078,2527.7,2526.9,3.2078]
[1726839791688,0.39566,2527.3,2526.9,3.2078]
[1726839792086,0.3957,2527.0,2526.9,3.2078]
[1726839792383,3.2078,2527.1,2526.4,0.3963]
[1726839792584,0.39574,2526.8,2526.4,0.3963]
[1726839792794,0.39573,2526.9,2526.4,0.3963]
[1726839792985,3.2078,2527.1,2526.4,0.3963]
[1726839793185,3.2078,2527.1,2526.5,3.2078]
[1726839793491,0.39568,2527.2,2526.8,0.39573]
[1726839793691,0.39568,2527.2,2526.7,0.39574]
[1726839794080,0.39566,2527.3,2526.8,3.2078]
[1726839794279,0.39566,2527.3,2526.8,3.60352]
[1726839794480,0.39568,2527.2,2526.8,3.60352]
[1726839794681,3.2078,2527.4,2526.8,3.2078]
[1726839794877,0.39568,2527.2,2526.8,3.60353]
[1726839795088,0.39565,2527.3,2526.9,0.39572]
[1726839795483,3.2078,2527.4,2526.8,3.2078]
[1726839795683,3.2078,2527.4,2526.5,3.2078]
[1726839795884,0.98918,2527.2,2526.5,3.2078]
[1726839796183,0.98922,2527.1,2526.5,3.2078]
[1726839796387,0.39574,2526.8,2526.5,3.2078]
[1726839797093,3.2078,2527.1,2526.3,0.4039]
[1726839797285,0.98922,2527.2,2526.3,3.6117]
[1726839797587,0.39572,2526.9,2526.6,0.39576]
[1726839797986,0.39573,2526.8,2526.5,0.39577]
[1726839798189,0.39575,2526.8,2526.5,0.39577]
[1726839798380,0.39576,2526.7,2526.4,0.39579]
[1726839798994,0.98922,2527.2,2526.6,0.39576]
[1726839798995,0.39574,2526.8,2526.6,0.39576]
[1726839799190,0.98922,2527.1,2526.3,3.6117]
[1726839799488,0.98922,2527.1,2526.6,0.39576]
[1726839799696,0.39569,2527.1,2526.3,3.6117]
[1726839799995,0.39569,2527.1,2526.6,3.2078]
[1726839800191,0.39569,2527.1,2526.9,0.39571]
[1726839800381,0.3915,2527.3,2526.6,3.2078]
[1726839800693,0.3957,2527.0,2526.8,0.39572]
[1726839800882,0.39569,2527.2,2526.9,0.39571]
[1726839801090,0.39569,2527.1,2526.9,0.39571]
[1726839801389,8.31793,2527.4,2526.6,3.6152]
[1726839801390,4.121,2527.4,2526.7,4.19718]
[1726839801592,4.121,2527.4,2527.3,0.39565]
[1726839801895,0.98901,2527.7,2527.0,0.98926]
[1726839802189,0.98899,2527.7,2527.0,3.2078]
[1726839802393,0.39566,2527.3,2526.8,3.8]
[1726839802592,0.39565,2527.4,2527.2,0.39567]
[1726839802784,0.39565,2527.4,2527.3,0.39565]
[1726839802984,0.98903,2527.6,2527.1,3.2078]
[1726839802985,0.39561,2527.6,2527.1,3.2078]
[1726839803185,0.3956,2527.7,2527.5,0.39562]
[1726839803386,0.39561,2527.6,2527.2,0.815]
[1726839803587,0.39561,2527.6,2527.5,0.39561]
[1726839803900,1.36511,2527.9,2527.3,0.98914]
[1726839803901,0.3762,2527.9,2527.3,0.98914]
[1726839804085,0.3762,2527.9,2527.3,4.19693]
[1726839804281,1.36512,2527.9,2527.5,0.39562]
[1726839804484,3.2078,2528.3,2527.9,0.39555]
[1726839804681,0.39555,2528.0,2527.7,3.2078]
[1726839804993,3.2078,2528.3,2527.7,3.2078]
[1726839804994,0.39554,2528.1,2527.7,3.2078]
[1726839805294,0.77356,2528.6,2528.0,0.98885]
[1726839805492,12.1173,2529.0,2528.5,0.39546]
[1726839805493,8.7068,2529.0,2528.5,0.39546]
[1726839805691,0.98852,2528.9,2528.1,4.0166]
[1726839805894,3.5973,2529.0,2528.6,0.39544]
[1726839806095,3.5973,2529.0,2528.1,4.0166]
[1726839806694,0.39545,2528.7,2528.4,0.39547]
[1726839806902,0.39545,2528.6,2528.3,0.39549]
[1726839807195,3.5973,2529.0,2528.2,0.3955]
[1726839807401,4.58581,2529.0,2528.1,4.0166]
[1726839807601,0.39545,2528.6,2528.3,0.39549]
[1726839807900,4.58581,2529.0,2528.4,0.39548]
[1726839808103,0.39543,2528.8,2528.4,0.39548]
[1726839808296,3.2078,2529.4,2528.4,3.2078]
[1726839808493,0.39537,2529.2,2528.8,0.39541]
[1726839808890,0.39537,2529.2,2528.7,3.2078]
[1726839809093,4.19612,2529.4,2528.2,7.4778]
[1726839809302,4.19612,2529.4,2528.6,0.39545]
[1726839809303,3.2078,2529.4,2528.6,0.39545]
[1726839809493,3.2078,2529.4,2528.2,7.4778]
[1726839809494,0.3954,2529.0,2528.5,0.39546]
[1726839809799,0.3954,2529.0,2528.6,0.39545]
[1726839810402,4.19612,2529.4,2528.7,0.39543]
[1726839810699,0.39538,2529.1,2528.6,0.39544]
[1726839811094,0.39539,2529.0,2528.6,0.39544]
[1726839811289,3.2078,2529.4,2528.5,3.2078]
[1726839811503,0.39545,2528.7,2528.2,3.2078]
[1726839811700,0.39545,2528.7,2528.3,0.39549]
[1726839811892,0.3947,2529.0,2528.5,0.39545]
[1726839812202,0.39543,2528.8,2528.3,0.39549]
[1726839812398,0.39543,2528.8,2528.2,3.2078]
[1726839812803,0.39543,2528.8,2528.4,0.39548]
[1726839813001,0.39544,2528.7,2528.3,0.39549]
[1726839813303,0.3947,2529.0,2528.3,0.39549]
[1726839813504,0.39543,2528.8,2528.4,0.39548]
[1726839813994,0.39544,2528.7,2528.4,0.39548]
[1726839814190,0.39544,2528.7,2528.2,3.2078]
[1726839814396,0.39544,2528.7,2528.4,0.39548]
[1726839814707,0.3947,2529.0,2528.2,3.2078]
[1726839815005,0.39542,2528.9,2528.2,3.2078]
[1726839815203,1.38321,2529.0,2528.2,3.2078]
[1726839815397,0.39546,2528.6,2528.3,0.39549]
[1726839815597,0.98852,2528.9,2528.4,0.39548]
[1726839815598,0.39545,2528.7,2528.4,0.39548]
[1726839816102,0.39549,2528.4,2528.1,4.0166]
[1726839816402,0.39548,2528.5,2528.1,4.0166]
[1726839816604,0.39548,2528.5,2528.2,0.39551]
[1726839817104,0.39547,2528.5,2528.1,4.0166]
[1726839817297,0.39547,2528.5,2528.2,0.39551]
[1726839817600,0.39545,2528.6,2528.1,4.41212]
[1726839817807,0.39548,2528.5,2528.2,0.39551]
[1726839818401,0.39548,2528.4,2528.1,4.41212]
[1726839818590,0.39548,2528.5,2528.2,0.39551]
[1726839818790,0.98863,2528.6,2528.1,4.0166]
[1726839819301,3.2078,2528.8,2528.4,3.2078]
[1726839819708,0.3947,2529.0,2528.9,0.3954]
[1726839819912,0.39537,2529.1,2528.8,0.39541]
[1726839820210,3.2078,2529.2,2528.7,3.2078]
[1726839820400,5.52138,2529.6,2529.0,3.2078]
[1726839820401,0.4121,2529.6,2529.0,3.2078]
[1726839820605,0.39532,2529.5,2528.8,4.27]
[1726839820798,0.39533,2529.4,2529.1,0.39536]
[1726839821105,0.39536,2529.2,2528.9,1.1736]
[1726839821305,0.98828,2529.5,2528.9,0.7782]
[1726839821306,0.39535,2529.3,2528.9,0.7782]
[1726839821501,0.39534,2529.4,2529.1,3.2078]
[1726839821804,0.4121,2529.6,2529.1,3.2078]
[1726839821999,0.39532,2529.5,2529.2,0.39535]
[1726839822199,0.39533,2529.4,2529.1,3.60316]
[1726839822403,0.4121,2529.6,2529.0,0.39538]
[1726839822600,0.4121,2529.6,2528.9,0.7782]
[1726839822601,0.39535,2529.3,2529.2,3.2078]
[1726839823015,3.9536,2529.3,2528.6,3.2078]
[1726839823300,0.98832,2529.4,2528.8,0.39541]
[1726839823505,0.39538,2529.1,2528.9,3.2078]
[1726839823897,0.39542,2528.9,2528.5,4.79846]
[1726839824098,4.19615,2529.4,2528.6,0.39545]
[1726839824300,0.39536,2529.2,2528.5,4.403]
[1726839824605,0.39537,2529.2,2528.9,0.3954]
[1726839824909,0.39532,2529.5,2528.8,3.2078]
[1726839825112,0.39534,2529.3,2529.0,0.39538]
[1726839825307,0.39531,2529.5,2529.2,0.39535]
[1726839825495,0.39527,2529.8,2529.4,0.39531]
[1726839825695,2.51852468,2530.4,2529.5,0.3856]
[1726839825696,0.98801,2530.2,2529.5,0.3856]
[1726839825899,0.39529,2529.6,2529.3,0.39533]
[1726839826101,0.98825,2529.6,2529.0,0.3856]
[1726839826300,0.39538,2529.1,2528.8,3.60321]
[1726839826501,0.98832,2529.4,2528.8,3.2078]
[1726839826696,0.98832,2529.4,2528.5,1.1991]
[1726839827013,0.3954,2529.0,2528.8,3.2078]
[1726839827196,0.98842,2529.2,2528.8,3.2078]
[1726839827506,3.2078,2529.5,2528.8,3.2078]
[1726839827710,4.1961,2529.5,2528.8,7.4778]
[1726839827908,0.39536,2529.2,2528.9,0.3954]
[1726839828107,0.39536,2529.2,2528.9,0.39539]
[1726839828297,4.1961,2529.5,2528.8,3.2078]
[1726839828503,4.1961,2529.5,2528.9,0.39539]
[1726839828504,0.39536,2529.2,2528.9,0.39539]
[1726839828702,0.39536,2529.2,2528.8,3.2078]
[1726839828898,0.39536,2529.2,2528.9,0.3954]
[1726839829210,4.1961,2529.5,2529.1,0.39537]
[1726839829409,4.1961,2529.5,2528.8,3.2078]
[1726839829410,0.39535,2529.3,2529.0,0.39538]
[1726839829611,3.2078,2529.5,2529.3,0.39533]
[1726839829807,3.60311,2529.5,2529.2,0.39535]
[1726839830107,0.39533,2529.4,2529.1,0.39536]
[1726839830308,3.60312,2529.5,2529.2,0.39535]
[1726839830510,0.39533,2529.4,2528.9,3.8]
[1726839831015,0.39533,2529.4,2529.2,0.39536]
[1726839831611,0.3953,2529.6,2529.3,0.39533]
[1726839831809,0.3779,2529.7,2529.3,0.39533]
[1726839832000,0.3779,2529.7,2529.2,0.399]
[1726839832208,0.3779,2529.7,2529.5,0.3953]
[1726839832407,0.3779,2529.7,2529.2,4.6081]
[1726839832607,0.98801,2530.2,2529.4,3.2078]
[1726839832914,0.39525,2530.0,2529.7,0.39527]
[1726839833113,0.39525,2529.9,2529.6,0.39528]
[1726839833505,0.39525,2529.9,2529.7,0.39528]
[1726839833804,0.98801,2530.2,2529.7,0.39527]
[1726839833805,0.39524,2530.0,2529.7,0.39527]
[1726839834001,7.3288,2530.3,2529.4,3.2078]
[1726839834002,0.39525,2529.9,2529.5,3.8]
[1726839834211,0.39525,2529.9,2529.7,0.39528]
[1726839834520,0.39523,2530.1,2529.8,0.39526]
[1726839834710,4.19579,2530.3,2529.8,0.39525]
[1726839834910,0.98801,2530.2,2529.7,0.39527]
[1726839835107,0.98801,2530.2,2529.5,3.8]
[1726839835307,0.39522,2530.1,2529.8,0.39525]
[1726839836213,4.19579,2530.3,2529.7,0.39527]
[1726839836516,0.39525,2529.9,2529.6,0.39528]
[1726839836916,0.98805,2530.1,2529.5,3.8]
[1726839837128,0.39524,2530.0,2529.7,0.39527]
[1726839837610,0.98801,2530.2,2529.5,3.8]
[1726839838214,0.39524,2530.0,2529.7,0.39527]
[1726839838412,0.7779,2530.4,2529.8,3.8]
[1726839838413,0.3966,2530.4,2529.8,3.8]
[1726839838719,3.2078,2530.6,2529.9,0.3894]
[1726839839018,0.39517,2530.4,2529.9,0.7757]
[1726839839215,0.3854,2530.7,2529.9,0.7757]
[1726839839216,0.3854,2530.7,2530.1,3.8]
[1726839839523,0.78053,2530.7,2530.4,0.39516]
[1726839839819,0.3854,2530.7,2530.2,3.2078]
[1726839840011,0.98785,2530.6,2530.2,3.2078]
[1726839840209,1.37323,2530.7,2529.9,0.7757]
[1726839840408,0.39523,2530.1,2529.9,0.7757]
[1726839840607,0.3854,2530.7,2529.7,3.2078]
[1726839840608,3.2078,2530.3,2529.7,3.2078]
[1726839840809,0.98801,2530.2,2529.7,3.2078]
[1726839841112,3.2078,2530.3,2529.8,0.39525]
[1726839841315,0.39523,2530.0,2529.8,0.39526]
[1726839841519,0.39523,2530.1,2529.8,0.39526]
[1726839841710,0.98789,2530.5,2529.9,0.39524]
[1726839842018,3.2078,2530.6,2529.8,3.8]
[1726839842312,3.2078,2530.6,2530.2,0.3952]
[1726839842313,0.39516,2530.5,2530.2,0.3952]
[1726839843018,3.2078,2530.6,2530.4,0.39517]
[1726839843219,0.78053,2530.7,2530.3,0.39517]
[1726839843416,0.39514,2530.6,2530.3,0.39517]
[1726839843914,0.98785,2530.6,2529.9,0.39524]
[1726839844110,0.98789,2530.5,2529.9,0.39525]
[1726839844313,0.39521,2530.2,2529.8,4.59326]
[1726839844613,0.39521,2530.2,2529.8,4.59325]
[1726839844809,0.39521,2530.2,2529.9,0.39525]
[1726839845014,0.39521,2530.2,2529.8,4.198]
[1726839845319,0.3952,2530.3,2529.9,0.39524]
[1726839845516,4.19576,2530.4,2529.8,4.198]
[1726839845723,0.39525,2529.9,2529.8,4.198]
[1726839845913,0.98809,2530.0,2529.5,3.8]
[1726839846112,3.5893,2530.1,2529.3,3.2078]
[1726839846420,0.98813,2529.9,2529.3,3.2078]
[1726839846619,0.39529,2529.7,2529.3,3.60313]
[1726839846813,4.19597,2529.8,2529.2,0.7613]
[1726839847117,0.3953,2529.6,2529.2,0.7613]
[1726839847317,3.2078,2529.8,2529.3,0.39534]
[1726839847318,0.39529,2529.7,2529.3,0.39534]
[1726839847712,0.3953,2529.6,2529.3,0.39534]
[1726839848118,0.39529,2529.7,2529.3,0.39534]
[1726839848323,0.3953,2529.6,2529.2,4.5613]
[1726839848518,0.3748,2530.0,2529.2,4.5613]
[1726839848719,0.3748,2530.0,2529.5,3.8]
[1726839849012,0.98813,2529.9,2529.3,3.2078]
[1726839849214,0.39528,2529.8,2529.3,3.2078]
[1726839849418,0.39528,2529.8,2529.4,0.39531]
[1726839849616,0.77672,2530.1,2529.8,0.39526]
[1726839849825,0.3815,2530.1,2529.9,0.39525]
[1726839850026,0.3815,2530.1,2529.6,3.2078]
[1726839850027,0.39525,2529.9,2529.6,3.60309]
[1726839850227,0.3815,2530.1,2529.2,4.95]
[1726839850526,0.3953,2529.6,2529.3,0.39533]
[1726839850824,2.39390148,2530.1,2529.2,0.7613]
[1726839851028,0.39532,2529.5,2529.2,1.15666]
[1726839851240,5.22020148,2530.0,2528.9,3.8]
[1726839851428,5.22020148,2530.0,2528.0,3.8]
[1726839851429,3.2078,2529.0,2528.0,3.8]
[1726839851620,0.39547,2528.5,2528.4,3.2078]
[1726839851824,0.98862,2528.7,2528.2,0.4132]
[1726839852125,0.98862,2528.7,2528.1,0.4067]
[1726839852126,0.98863,2528.6,2528.1,0.4067]
[1726839852320,0.39549,2528.4,2527.9,3.2078]
[1726839852525,2.40786148,2528.6,2528.0,3.8]
[1726839852721,0.39547,2528.5,2528.1,0.39552]
[1726839852923,5.22020148,2528.7,2528.0,4.60223]
[1726839853118,3.60324,2528.7,2528.0,4.2067]
[1726839853332,2.80941148,2528.9,2528.3,7.0078]
[1726839853525,0.79701,2528.9,2528.5,0.39547]
[1726839853828,0.79701,2528.9,2528.4,0.39547]
[1726839854233,0.4016,2528.9,2528.3,7.0078]
[1726839854529,0.4016,2528.9,2528.5,0.39546]
[1726839854530,0.797,2528.9,2528.5,0.39546]
[1726839855037,2.41400148,2528.9,2528.0,7.4145]
[1726839855232,0.39549,2528.4,2528.0,7.4145]
[1726839855427,0.39544,2528.7,2528.0,7.4145]
[1726839855632,5.61830148,2528.7,2528.0,3.6145]
[1726839855824,0.39549,2528.4,2528.0,0.4067]
[1726839856131,0.39551,2528.3,2528.0,0.4067]
[1726839856327,0.39549,2528.4,2528.0,0.4067]
[1726839856721,0.39552,2528.2,2528.0,0.4067]
[1726839857131,0.39552,2528.2,2527.8,4.2132]
[1726839857326,7.7269,2528.7,2527.8,4.2132]
[1726839857536,0.98873,2528.4,2527.8,4.2132]
[1726839857836,0.3954,2528.3,2527.8,0.4132]
[1726839858227,0.3954,2528.3,2527.8,4.2132]
[1726839858530,0.39552,2528.2,2527.8,4.60877]
[1726839858744,0.39552,2528.2,2527.8,4.2132]
[1726839858924,3.2078,2527.9,2526.9,3.2078]
[1726839859128,3.2078,2527.9,2527.4,0.39563]
[1726839859439,0.3908,2528.0,2527.5,0.39562]
[1726839859629,0.78635,2528.0,2527.5,0.39562]
[1726839859830,0.3908,2528.0,2527.5,0.39562]
[1726839860133,0.3908,2528.0,2527.3,7.0078]
[1726839860134,0.39557,2527.9,2527.3,7.0078]
[1726839860329,0.39558,2527.8,2527.3,7.0078]
[1726839860529,0.39557,2527.9,2527.5,0.39561]
[1726839860728,0.3908,2528.0,2527.6,3.2078]
[1726839860938,0.39557,2527.9,2527.6,3.2078]
[1726839861129,0.78636,2528.0,2527.6,3.6034]
[1726839861330,0.39554,2528.1,2527.7,0.39559]
[1726839861626,3.2078,2528.2,2527.6,7.0078]
[1726839862035,0.39555,2528.0,2527.6,4.1956]
[1726839862232,3.2078,2528.2,2527.3,3.2078]
[1726839862428,7.0078,2528.1,2527.3,3.2078]
[1726839862627,4.1968,2527.7,2526.9,3.2078]
[1726839862827,0.39568,2527.2,2526.9,3.2078]
[1726839863332,0.802,2527.6,2526.9,3.2078]
[1726839863834,0.802,2527.6,2527.0,0.39569]
[1726839863835,0.39565,2527.4,2527.0,0.39569]
[1726839864030,0.39565,2527.4,2527.0,3.8]
[1726839864234,0.3901,2527.6,2527.3,3.8]
[1726839864436,0.78572,2527.6,2527.1,3.8]
[1726839864635,0.78572,2527.6,2527.3,0.39565]
[1726839864834,0.3956,2527.7,2527.1,3.8]
[1726839865139,0.39563,2527.5,2527.2,0.76787]
[1726839865338,0.98895,2527.8,2527.2,0.3722]
[1726839865532,4.98099,2528.0,2527.2,3.58]
[1726839865840,0.3956,2527.7,2527.4,0.39564]
[1726839866044,0.39559,2527.7,2527.4,0.39563]
[1726839866242,3.5826,2528.0,2527.6,3.2078]
[1726839866430,0.77035,2528.0,2527.4,4.1735]
[1726839866636,0.39556,2527.9,2527.7,0.39559]
[1726839866833,0.39556,2527.9,2527.6,0.39559]
[1726839867028,0.3748,2528.0,2527.4,4.1735]
[1726839867229,0.39559,2527.8,2527.3,3.6128]
[1726839867433,1.36369,2528.0,2527.3,3.6128]
[1726839867633,1.36369,2528.0,2527.4,0.39563]
[1726839867835,0.98891,2527.9,2527.3,3.6128]
[1726839868134,0.98891,2527.9,2526.9,3.2078]
[1726839868135,3.2078,2527.8,2526.9,3.2078]
[1726839868337,0.9891,2527.4,2526.9,3.60352]
[1726839868540,0.9891,2527.4,2526.9,0.39572]
[1726839868733,0.9891,2527.4,2526.8,0.3777]
[1726839868941,0.98918,2527.3,2526.8,0.3777]
[1726839869132,0.39567,2527.2,2526.9,0.39571]
[1726839869441,0.39567,2527.2,2526.9,3.60351]
[1726839869642,0.4066,2527.4,2526.9,3.60351]
[1726839869838,0.39568,2527.2,2526.9,3.60351]
[1726839870242,0.4066,2527.4,2526.9,3.60351]
[1726839870437,0.98914,2527.3,2526.6,4.3501]
[1726839870633,0.39572,2526.9,2526.6,4.74586]
[1726839870839,0.98922,2527.1,2526.6,3.9724]
[1726839871144,0.39575,2526.8,2526.6,0.7646]
[1726839871535,0.39573,2526.9,2526.6,0.7646]
[1726839871733,0.39573,2526.8,2526.6,0.7646]
[1726839871939,0.39574,2526.8,2526.6,0.7646]
[1726839872940,0.39572,2526.9,2526.6,0.7646]
[1726839873538,0.39573,2526.9,2526.6,0.7646]
[1726839874151,3.2078,2527.2,2526.6,0.7646]
[1726839874353,0.4066,2527.4,2526.8,0.39573]
[1726839874648,0.39568,2527.2,2526.8,0.39573]
[1726839874845,0.39569,2527.1,2526.8,0.39573]
[1726839875039,0.3957,2527.1,2526.7,0.39573]
[1726839875240,0.3957,2527.1,2526.8,0.39573]
[1726839875644,0.3957,2527.0,2526.7,0.39574]
[1726839875842,1.39573,2527.4,2526.8,0.39572]
[1726839875843,0.39569,2527.1,2526.8,0.39572]
[1726839876239,0.39568,2527.2,2526.9,0.39571]
[1726839876545,4.121,2527.9,2527.1,7.0078]
[1726839876742,4.121,2527.9,2526.6,4.7222]
[1726839876743,3.2078,2528.1,2527.4,3.8]
[1726839876938,0.39561,2527.6,2527.3,0.39565]
[1726839877138,0.3858,2528.0,2526.6,3.98286]
[1726839877139,0.39572,2527.0,2526.6,3.98286]
[1726839877443,3.2078,2527.8,2526.6,3.98286]
[1726839877444,0.39572,2526.9,2526.6,1.15416]
[1726839877644,0.98918,2527.2,2526.6,0.7584]
[1726839877846,0.39572,2526.9,2526.6,1.15416]
[1726839878252,0.39571,2527.0,2526.7,0.39574]
[1726839878551,0.3858,2527.3,2526.6,0.7584]
[1726839878552,0.39573,2526.8,2526.6,0.7584]
[1726839878751,0.98923,2527.1,2526.6,0.7584]
[1726839878942,0.39574,2526.8,2526.6,0.7584]
[1726839879142,0.39575,2526.7,2526.6,0.3793]
[1726839879343,0.98928,2527.0,2526.3,3.8]
[1726839879648,0.39572,2526.9,2526.6,0.39576]
[1726839879854,3.2078,2527.2,2526.3,3.8]
[1726839880149,3.2078,2527.2,2526.4,0.39579]
[1726839880150,0.39575,2526.7,2526.4,0.39579]
[1726839880845,0.9892,2527.2,2526.3,3.8]
[1726839881051,0.39571,2527.0,2526.7,0.39575]
[1726839881256,0.39572,2526.9,2526.6,0.39576]
[1726839881554,0.39571,2527.0,2526.7,0.39574]
[1726839882054,0.39571,2527.0,2526.8,0.39573]
[1726839882252,0.39572,2526.9,2526.5,3.2078]
[1726839882549,0.39571,2527.0,2526.5,3.2078]
[1726839882748,0.39571,2527.0,2526.8,0.39573]
[1726839882948,0.3858,2527.3,2527.0,0.39569]
[1726839883140,0.3858,2527.3,2527.1,0.39568]
[1726839883339,0.39565,2527.4,2526.9,3.8]
[1726839883547,0.39565,2527.4,2527.1,0.39567]
[1726839883739,0.39566,2527.3,2527.1,0.39567]
[1726839883946,0.39566,2527.3,2527.0,0.39569]
[1726839884244,0.39568,2527.2,2527.0,0.39569]
[1726839884847,0.39568,2527.2,2526.9,0.7795]
[1726839885048,0.9891,2527.4,2526.9,0.3809]
[1726839885248,0.3999,2527.5,2526.8,0.39572]
[1726839885249,0.98914,2527.3,2526.8,0.39572]
[1726839885449,0.98913,2527.4,2526.6,3.5837]
[1726839885650,1.38898,2527.5,2526.6,3.5837]
[1726839885850,1.38898,2527.5,2526.8,0.39572]
[1726839885851,0.39569,2527.1,2526.8,0.39572]
[1726839886049,0.98914,2527.3,2526.6,3.5837]
[1726839886251,1.3981,2527.7,2526.9,0.98929]
[1726839886449,1.3981,2527.7,2526.8,3.2078]
[1726839886450,4.121,2527.9,2527.4,3.2078]
[1726839886649,1.36411,2528.2,2527.5,0.764]
[1726839886850,0.39557,2527.9,2527.6,0.3956]
[1726839887048,0.39557,2527.9,2527.5,0.764]
[1726839887049,0.39558,2527.8,2527.5,1.15961]
[1726839887250,3.2078,2528.1,2527.5,0.764]
[1726839887556,0.3753,2528.2,2526.9,7.4034]
[1726839887557,3.2078,2527.8,2526.9,7.4034]
[1726839887856,0.39564,2527.4,2527.1,0.39569]
[1726839888059,0.98903,2527.6,2527.0,1.16979]
[1726839888262,0.39568,2527.2,2527.0,0.7741]
[1726839888559,0.39566,2527.3,2527.0,1.1698]
[1726839888769,0.39562,2527.5,2527.3,0.39565]
[1726839889056,4.57206,2527.8,2527.3,0.39565]
[1726839889259,0.39563,2527.5,2527.2,0.39566]
[1726839890461,0.39564,2527.4,2527.1,0.39568]
[1726839891154,0.39563,2527.5,2527.2,0.39567]
[1726839891357,0.39563,2527.5,2527.0,0.7741]
[1726839891358,0.39564,2527.4,2527.1,0.39568]
[1726839891657,0.39564,2527.4,2527.0,0.7741]
[1726839891866,0.39564,2527.4,2527.2,0.39567]
[1726839892254,0.98899,2527.7,2527.2,0.39567]
[1726839892450,0.39564,2527.4,2527.1,0.39568]
[1726839892651,0.39563,2527.5,2527.0,0.7741]
[1726839892856,0.39564,2527.4,2527.2,0.39566]
[1726839893061,0.39562,2527.6,2527.3,0.39564]
[1726839893361,3.2078,2527.8,2527.2,3.2078]
[1726839893554,0.39561,2527.6,2527.4,0.39563]
[1726839893753,0.3956,2527.7,2527.5,0.39562]
[1726839894257,0.39564,2527.4,2527.2,0.39567]
[1726839894453,0.98904,2527.6,2527.0,0.7741]
[1726839894655,0.39568,2527.2,2527.0,1.16979]
[1726839895050,0.39567,2527.3,2527.1,0.39568]
[1726839895559,0.39565,2527.4,2527.2,0.39567]
[1726839895754,0.39565,2527.3,2527.1,0.39568]
[1726839896558,0.39566,2527.3,2527.1,3.60348]
[1726839896957,0.39567,2527.2,2527.1,3.2078]
[1726839897358,0.39566,2527.3,2527.1,3.60348]
[1726839897552,0.98908,2527.5,2527.1,3.2078]
[1726839897754,0.39566,2527.3,2527.1,3.60347]
[1726839898556,0.39567,2527.2,2527.1,3.60347]
[1726839898863,0.39567,2527.2,2527.1,3.2078]
[1726839899370,0.39571,2527.0,2526.8,0.39573]
[1726839899754,0.3957,2527.1,2526.9,0.39572]
[1726839900156,0.7703,2527.3,2526.7,3.2078]
[1726839900356,0.7703,2527.3,2527.0,0.39569]
[1726839900557,3.37435148,2527.3,2526.9,0.39571]
[1726839900763,2.38520148,2527.3,2526.7,3.2078]
[1726839900964,2.38520148,2527.3,2527.0,0.3957]
[1726839901260,0.39572,2526.9,2526.8,0.39573]
[1726839901461,2.01240148,2527.2,2527.1,0.39569]
[1726839901659,2.01240148,2527.3,2527.2,0.39567]
[1726839901863,0.39566,2527.3,2527.2,0.39567]
[1726839902567,2.40806148,2527.3,2527.2,0.39567]
[1726839903069,2.40805148,2527.3,2527.2,0.39567]